Publisher Label,Publisher URI,"Supplier ID","Supplier","Invoice No.","Amount (£)","Purpose","Transaction Number","Payment Date","Organisational Unit","Cost Centre(T)","Internal Category Number"
"Wolverhampton City Council","http://opendatacommunities.org/id/metropolitan-district-council/wolverhampton","712697","L B Window Cleaning Services","844","50.00","Window Cleaning","130202874","09/02/2018","Early Intervention","EIP Locality 5 � Whitmore Reans","R2701"
"Wolverhampton City Council","http://opendatacommunities.org/id/metropolitan-district-council/wolverhampton","712763","WCC CTAX and NNDR uploads only","6002056705","402.20","Refunds","190424312","16/02/2018","Housing Revenue Account","Housing Revenue Summary Account","R4920"
"Wolverhampton City Council","http://opendatacommunities.org/id/metropolitan-district-council/wolverhampton","712763","WCC CTAX and NNDR uploads only","612347061229(a)","193.44","No Recourse to Public Funds","190422171","14/02/2018","Child Protection","CIN/CP Social Work Unit - Area 5","R6314"
"Wolverhampton City Council","http://opendatacommunities.org/id/metropolitan-district-council/wolverhampton","712763","WCC CTAX and NNDR uploads only","612345019535(j)","92.00","No Recourse to Public Funds","190422170","14/02/2018","Child Protection","CIN/CP Social Work Unit - Area 5","R6314"
"Wolverhampton City Council","http://opendatacommunities.org/id/metropolitan-district-council/wolverhampton","712819","Ramada Park Hall Hotel & Spa","11.09.2017","2,000.00","Room Hire","130206892","21/02/2018","Looked After Children","Pupil Premium","R2201"
"Wolverhampton City Council","http://opendatacommunities.org/id/metropolitan-district-council/wolverhampton","712859","Relate","459","3,640.00","Services - Supplies and Services to service users","130202527","07/02/2018","Early Intervention","EIP Locality 3 - Graiseley","R4408"
"Wolverhampton City Council","http://opendatacommunities.org/id/metropolitan-district-council/wolverhampton","712874","Riverside Environmental Services Limited","I026581","2,400.00","R&M - Departmental planned (external)","130204827","28/02/2018","Corporate Asset Management","Statutory Surveys","R2001"
"Wolverhampton City Council","http://opendatacommunities.org/id/metropolitan-district-council/wolverhampton","712874","Riverside Environmental Services Limited","I026576","775.00","R&M - Departmental planned (external)","130204825","28/02/2018","Licensing","Licensing - Private Hire Vehicles","R2001"
"Wolverhampton City Council","http://opendatacommunities.org/id/metropolitan-district-council/wolverhampton","712874","Riverside Environmental Services Limited","I026575","1,575.00","R&M - Departmental planned (external)","130204824","28/02/2018","School Planning & Resources","Primary Expansion Feasibility Work","R2001"
"Wolverhampton City Council","http://opendatacommunities.org/id/metropolitan-district-council/wolverhampton","712874","Riverside Environmental Services Limited","I026578","175.00","Construction and Conversion","130204826","28/02/2018","-","Asbestos Removal","C1100"
"Wolverhampton City Council","http://opendatacommunities.org/id/metropolitan-district-council/wolverhampton","712905","Dr S Taylor & Dr Cam(Surgery)","M2017Q015SMSCMRQ","2,140.00","TPP - Public Health Contracts","190425931","21/02/2018","Contracts","Alcohol and Drug","R5060"
"Wolverhampton City Council","http://opendatacommunities.org/id/metropolitan-district-council/wolverhampton","712905","Dr S Taylor & Dr Cam(Surgery)","M2017Q015SHIUFRQ","125.00","TPP - Public Health Contracts","190425934","21/02/2018","Contracts","Sexual Health","R5060"
"Wolverhampton City Council","http://opendatacommunities.org/id/metropolitan-district-council/wolverhampton","712905","Dr S Taylor & Dr Cam(Surgery)","M2017Q015SHIUDFQ","100.00","TPP - Public Health Contracts","190425933","21/02/2018","Contracts","Sexual Health","R5060"
"Wolverhampton City Council","http://opendatacommunities.org/id/metropolitan-district-council/wolverhampton","712905","Dr S Taylor & Dr Cam(Surgery)","M2017Q015SHCIFBQ","80.00","TPP - Public Health Contracts","190425932","21/02/2018","Contracts","Sexual Health","R5060"
"Wolverhampton City Council","http://opendatacommunities.org/id/metropolitan-district-council/wolverhampton","712929","Aspiring Futures CIC","P2S03","5,980.00","TPP - Social Care Support Services","130202881","14/02/2018","Early Intervention","Transformation Challenge Award","R5501"
"Wolverhampton City Council","http://opendatacommunities.org/id/metropolitan-district-council/wolverhampton","712944","The Boho Creative","230879","200.00","Marketing \ Non-staff advertising","130202530","02/02/2018","Strategic Organisation Development","Service Development Team","R4317"
"Wolverhampton City Council","http://opendatacommunities.org/id/metropolitan-district-council/wolverhampton","712956","Dr Paul E Hiley","DRPH/55285","580.80","Services - Professional Fees","190424907","21/02/2018","Democratic Services","Coroners Service","R4400"
"Wolverhampton City Council","http://opendatacommunities.org/id/metropolitan-district-council/wolverhampton","712956","Dr Paul E Hiley","DRPH/54704","193.60","Services - Professional Fees","190422168","14/02/2018","Democratic Services","Coroners Service","R4400"
"Wolverhampton City Council","http://opendatacommunities.org/id/metropolitan-district-council/wolverhampton","712960","Coventry and Warwickshire Partnership Trust","0000031489 GUM M9 17-18","138.14","TPP - Public Health Contracts","190426212","23/02/2018","Contracts","Sexual Health","R5060"
"Wolverhampton City Council","http://opendatacommunities.org/id/metropolitan-district-council/wolverhampton","713009","Wightwick Hall School","WHSI35","17,247.25","TPP - Alternative Provision of Education","130205936","14/02/2018","Standards and Vulnerable Pupils","SEN Education OOC","R5037"
"Wolverhampton City Council","http://opendatacommunities.org/id/metropolitan-district-council/wolverhampton","713009","Wightwick Hall School","WHSI40","12,319.46","TPP - Alternative Provision of Education","130207589","28/02/2018","Standards and Vulnerable Pupils","SEN Education OOC","R5037"
"Wolverhampton City Council","http://opendatacommunities.org/id/metropolitan-district-council/wolverhampton","713059","Sage Pay Europe Ltd (formely Sage Pay)","EU - 00436130","739.75","Services - Bank Charges","130205439","28/02/2018","Central Corporate Budgets","Corporate Management","R4403"
"Wolverhampton City Council","http://opendatacommunities.org/id/metropolitan-district-council/wolverhampton","713067","The Education Network","055V401519","58.50","Services - Professional Fees","130207002","23/02/2018","Looked After Children","Pupil Premium","R4400"
"Wolverhampton City Council","http://opendatacommunities.org/id/metropolitan-district-council/wolverhampton","713067","The Education Network","-","175.50","Services - Professional Fees","130207003","23/02/2018","Looked After Children","Pupil Premium","R4400"
"Wolverhampton City Council","http://opendatacommunities.org/id/metropolitan-district-council/wolverhampton","713109","DMB Consultancy Ltd","477","2,000.00","Services - Professional Fees","130205755","28/02/2018","Human Resources","Doctors Service","R4400"
"Wolverhampton City Council","http://opendatacommunities.org/id/metropolitan-district-council/wolverhampton","713109","DMB Consultancy Ltd","477","2,000.00","Services - Professional Fees","130205755","28/02/2018","Human Resources","Doctors Service","R4400"
"Wolverhampton City Council","http://opendatacommunities.org/id/metropolitan-district-council/wolverhampton","713109","DMB Consultancy Ltd","477","-2,000.00","Services - Professional Fees","130205755","28/02/2018","Human Resources","Doctors Service","R4400"
"Wolverhampton City Council","http://opendatacommunities.org/id/metropolitan-district-council/wolverhampton","713113","Mall Solutions Europe","8286","180.00","Marketing \ Non-staff advertising","130206868","28/02/2018","Corporate Communications","Communications & Marketing - General","R4317"
"Wolverhampton City Council","http://opendatacommunities.org/id/metropolitan-district-council/wolverhampton","713118","Bethphage","590020180219","12,751.20","TPP - Supported Living","190425021","21/02/2018","Learning Disabilities Care Purchasing","LD Care Purchasing (Spot Placements)","R5422"
"Wolverhampton City Council","http://opendatacommunities.org/id/metropolitan-district-council/wolverhampton","713197","Pears Therapy","JL01012018","4,730.00","Direct Work With Children","130201482","02/02/2018","Looked After Children","Adoption Support Fund","R6310"
"Wolverhampton City Council","http://opendatacommunities.org/id/metropolitan-district-council/wolverhampton","713197","Pears Therapy","FORLB1512018","4,553.00","Direct Work With Children","130202531","14/02/2018","Looked After Children","Adoption Support Fund","R6310"
"Wolverhampton City Council","http://opendatacommunities.org/id/metropolitan-district-council/wolverhampton","713197","Pears Therapy","JL0101018","4,730.00","Direct Work With Children","130204829","09/02/2018","Looked After Children","Adoption Support Fund","R6310"
"Wolverhampton City Council","http://opendatacommunities.org/id/metropolitan-district-council/wolverhampton","713197","Pears Therapy","MKRK27122017","6,067.50","Direct Work With Children","130201483","02/02/2018","Looked After Children","Adoption Support Fund","R6310"
"Wolverhampton City Council","http://opendatacommunities.org/id/metropolitan-district-council/wolverhampton","713246","Midland Foods Limited","1139238","62.79","Provisions (Not for resale)","130204835","14/02/2018","Older People Provider Services","Bradley Lodge Resource Centre","R4101"
"Wolverhampton City Council","http://opendatacommunities.org/id/metropolitan-district-council/wolverhampton","713246","Midland Foods Limited","1137077","11.67","Provisions (Not for resale)","130204830","07/02/2018","Older People Provider Services","Blakenhall Resource Centre","R4101"
"Wolverhampton City Council","http://opendatacommunities.org/id/metropolitan-district-council/wolverhampton","713246","Midland Foods Limited","1140660","36.43","Provisions (Not for resale)","130204838","23/02/2018","Older People Provider Services","Bradley Lodge Resource Centre","R4101"
"Wolverhampton City Council","http://opendatacommunities.org/id/metropolitan-district-council/wolverhampton","713246","Midland Foods Limited","1140477","60.22","Provisions (Not for resale)","130204837","23/02/2018","Older People Provider Services","Bradley Lodge Resource Centre","R4101"
"Wolverhampton City Council","http://opendatacommunities.org/id/metropolitan-district-council/wolverhampton","713246","Midland Foods Limited","1138339","8.01","Provisions (Not for resale)","130204834","09/02/2018","Older People Provider Services","Bradley Lodge Resource Centre","R4101"
"Wolverhampton City Council","http://opendatacommunities.org/id/metropolitan-district-council/wolverhampton","713246","Midland Foods Limited","1138169","76.94","Provisions (Not for resale)","130204833","23/02/2018","Older People Provider Services","Bradley Lodge Resource Centre","R4101"
"Wolverhampton City Council","http://opendatacommunities.org/id/metropolitan-district-council/wolverhampton","713246","Midland Foods Limited","1137085","52.10","Provisions (Not for resale)","130204831","23/02/2018","Older People Provider Services","Bradley Lodge Resource Centre","R4101"
"Wolverhampton City Council","http://opendatacommunities.org/id/metropolitan-district-council/wolverhampton","713246","Midland Foods Limited","1139457","60.36","Provisions (Not for resale)","130204836","23/02/2018","Older People Provider Services","Bradley Lodge Resource Centre","R4101"
"Wolverhampton City Council","http://opendatacommunities.org/id/metropolitan-district-council/wolverhampton","713258","MTH Cleaning Equipment Ltd","MTH160337","154.95","Equipment - R & M","190426873","23/02/2018","Fleet Services","Fleet Management","R4003"
"Wolverhampton City Council","http://opendatacommunities.org/id/metropolitan-district-council/wolverhampton","713258","MTH Cleaning Equipment Ltd","MTH160754","259.10","Equipment - R & M","190426876","23/02/2018","Fleet Services","Fleet Management","R4003"
"Wolverhampton City Council","http://opendatacommunities.org/id/metropolitan-district-council/wolverhampton","713258","MTH Cleaning Equipment Ltd","MTH160388","47.50","Equipment - R & M","190426874","23/02/2018","Fleet Services","Fleet Management","R4003"
"Wolverhampton City Council","http://opendatacommunities.org/id/metropolitan-district-council/wolverhampton","713258","MTH Cleaning Equipment Ltd","MTH160457","22.50","Equipment - R & M","190426875","23/02/2018","Fleet Services","Fleet Management","R4003"
"Wolverhampton City Council","http://opendatacommunities.org/id/metropolitan-district-council/wolverhampton","713286","Energas","4646552","8.63","Equipment - R & M","190425733","21/02/2018","Fleet Services","Fleet Management","R4003"
"Wolverhampton City Council","http://opendatacommunities.org/id/metropolitan-district-council/wolverhampton","713286","Energas","4646552","21.72","Equipment - R & M","190425733","21/02/2018","Fleet Services","Fleet Management","R4003"
"Wolverhampton City Council","http://opendatacommunities.org/id/metropolitan-district-council/wolverhampton","713286","Energas","4646552","17.26","Equipment - R & M","190425733","21/02/2018","Fleet Services","Fleet Management","R4003"
"Wolverhampton City Council","http://opendatacommunities.org/id/metropolitan-district-council/wolverhampton","713376","PageOne Communications Ltd","I8061573","370.00","Comms - Telephone Call charges","130204251","07/02/2018","Adult Education","ICT Services","R4505"
"Wolverhampton City Council","http://opendatacommunities.org/id/metropolitan-district-council/wolverhampton","713435","Shared Service Architecture Ltd","2018/608","1,950.00","Training Expenses","130205173","28/02/2018","Human Resources","Centralised Training","R1650"
"Wolverhampton City Council","http://opendatacommunities.org/id/metropolitan-district-council/wolverhampton","713487","Gandlake Limited","90911","4,800.00","Services - Fees and Charges","130206907","23/02/2018","Revenues & Benefits","Revenues","R4401"
"Wolverhampton City Council","http://opendatacommunities.org/id/metropolitan-district-council/wolverhampton","713526","Williams Medical Supplies","WSI - 1619560","250.00","Equipment - R & M","130205756","28/02/2018","Human Resources","Occupational Health","R4003"
"Wolverhampton City Council","http://opendatacommunities.org/id/metropolitan-district-council/wolverhampton","713564","Bloomfield College","ABCP1718","5,610.00","Pupil Support","190419899","09/02/2018","Specialist Support","Alternative Provision Pupil Premium","R4971"
"Wolverhampton City Council","http://opendatacommunities.org/id/metropolitan-district-council/wolverhampton","713567","Yarrington Limited","14582","2,500.00","Marketing \ Non-staff advertising","130205757","14/02/2018","Corporate Communications","Communications & Marketing - General","R4317"
"Wolverhampton City Council","http://opendatacommunities.org/id/metropolitan-district-council/wolverhampton","713574","Tremark Associates Limited","T.84481/79238","125.00","Services - Professional Fees","190417411","02/02/2018","Legal Services","Centralised External Legal Costs","R4400"
"Wolverhampton City Council","http://opendatacommunities.org/id/metropolitan-district-council/wolverhampton","713574","Tremark Associates Limited","80427","160.80","Services - Professional Fees","130204094","16/02/2018","Legal Services","Centralised External Legal Costs","R4400"
"Wolverhampton City Council","http://opendatacommunities.org/id/metropolitan-district-council/wolverhampton","713637","St Mary�s Catholic Primary Academy","St Mary�s Primary Enhanced Funding Payment GO IM","2,000.00","Grant Payments","190427798","28/02/2018","Schools","Academy Early years","R4700"
"Wolverhampton City Council","http://opendatacommunities.org/id/metropolitan-district-council/wolverhampton","713637","St Mary�s Catholic Primary Academy","SEN Mainstream Top Ups Autumn Term 2017 - St Mary�s Catholic Academy","4,220.68","Grant Payments","190418397","07/02/2018","Schools","High Needs Top Up -Mainstream Schools/Academies","R4700"
"Wolverhampton City Council","http://opendatacommunities.org/id/metropolitan-district-council/wolverhampton","713637","St Mary�s Catholic Primary Academy","WCC240717/A","5,200.00","Plant, Equipment, Machinery & Computer Hardware","130206735","23/02/2018","-","Primary Expansion Programme","C3000"
"Wolverhampton City Council","http://opendatacommunities.org/id/metropolitan-district-council/wolverhampton","713637","St Mary�s Catholic Primary Academy","WCC240717/A","-5,200.00","Plant, Equipment, Machinery & Computer Hardware","130206735","23/02/2018","-","Primary Expansion Programme","C3000"
"Wolverhampton City Council","http://opendatacommunities.org/id/metropolitan-district-council/wolverhampton","713637","St Mary�s Catholic Primary Academy","WCC240717/A","5,200.00","Plant, Equipment, Machinery & Computer Hardware","130206735","23/02/2018","-","Primary Expansion Programme","C3000"
"Wolverhampton City Council","http://opendatacommunities.org/id/metropolitan-district-council/wolverhampton","713637","St Mary�s Catholic Primary Academy","St Mary�s Catholic Academy Early Years Payment Spring Term Interim 1718","24,170.17","Grant Payments","190424273","16/02/2018","Schools","Academy Early years","R4700"
"Wolverhampton City Council","http://opendatacommunities.org/id/metropolitan-district-council/wolverhampton","713637","St Mary�s Catholic Primary Academy","WCC250717/B","19,663.53","Plant, Equipment, Machinery & Computer Hardware","130206736","21/02/2018","-","Primary Expansion Programme","C3000"
"Wolverhampton City Council","http://opendatacommunities.org/id/metropolitan-district-council/wolverhampton","713637","St Mary�s Catholic Primary Academy","St Mary�s Catholic Academy Early Years Payment Autumn Term Final 1718","15,498.16","Grant Payments","190424272","16/02/2018","Schools","Academy Early years","R4700"
"Wolverhampton City Council","http://opendatacommunities.org/id/metropolitan-district-council/wolverhampton","713638","Corpus Christi Catholic Primary Academy","Corpus Christi Primary Enhanced Funding","1,530.00","Grant Payments","190427800","28/02/2018","Schools","Academy Early years","R4700"
"Wolverhampton City Council","http://opendatacommunities.org/id/metropolitan-district-council/wolverhampton","713638","Corpus Christi Catholic Primary Academy","Corpus Christi Catholic  Academy Early Years Payment Spring Term Interim 1718","10,190.33","Grant Payments","190424271","16/02/2018","Schools","Academy Early years","R4700"
"Wolverhampton City Council","http://opendatacommunities.org/id/metropolitan-district-council/wolverhampton","713638","Corpus Christi Catholic Primary Academy","Corpus Christi Catholic Academy Early Years Payment Autumn Term Final 1718","16,933.45","Grant Payments","190424270","16/02/2018","Schools","Academy Early years","R4700"
"Wolverhampton City Council","http://opendatacommunities.org/id/metropolitan-district-council/wolverhampton","713639","St Martins Multi Academy Trust","St Martins Academy Early Years Payment Autumn Term Final 1718","16,554.00","Grant Payments","190424276","16/02/2018","Schools","Academy Early years","R4700"
"Wolverhampton City Council","http://opendatacommunities.org/id/metropolitan-district-council/wolverhampton","713639","St Martins Multi Academy Trust","St Martins Academy Early Years Payment Spring Term Interim 1718","13,963.50","Grant Payments","190424277","16/02/2018","Schools","Academy Early years","R4700"
"Wolverhampton City Council","http://opendatacommunities.org/id/metropolitan-district-council/wolverhampton","713639","St Martins Multi Academy Trust","St Martin�s Primary Enhanced Funding DC","1,000.00","Grant Payments","190427795","28/02/2018","Schools","Academy Early years","R4700"
"Wolverhampton City Council","http://opendatacommunities.org/id/metropolitan-district-council/wolverhampton","713640","Field View Academy","Field View Academy Early Years Payment Autumn Term Final 1718","18,573.72","Grant Payments","190424274","16/02/2018","Schools","Academy Early years","R4700"
"Wolverhampton City Council","http://opendatacommunities.org/id/metropolitan-district-council/wolverhampton","713640","Field View Academy","Field View Academy Early Years Payment Spring Term Interim 1718","23,474.83","Grant Payments","190424275","16/02/2018","Schools","Academy Early years","R4700"
"Wolverhampton City Council","http://opendatacommunities.org/id/metropolitan-district-council/wolverhampton","713643","Our Lady & St Chad�s Catholic Academy","SEN Mainstream Top Ups Autumn Term 2017 - OLSC Academy","8,365.51","Grant Payments","190418389","07/02/2018","Schools","High Needs Top Up -Mainstream Schools/Academies","R4700"
"Wolverhampton City Council","http://opendatacommunities.org/id/metropolitan-district-council/wolverhampton","713644","Holy Rosary Catholic Primary Academy","SEN Mainstream Top Ups Autumn Term 2017 - Holy Rosary Catholic Academy","2,425.85","Grant Payments","190418383","07/02/2018","Schools","High Needs Top Up -Mainstream Schools/Academies","R4700"
"Wolverhampton City Council","http://opendatacommunities.org/id/metropolitan-district-council/wolverhampton","713664","WYG Management Services Ltd","847976","2,493.91","Services - Consultants","130205758","16/02/2018","City Development","Strategic Disposals","R4404"
"Wolverhampton City Council","http://opendatacommunities.org/id/metropolitan-district-council/wolverhampton","713848","Triangle Consulting Social Enterprise Ltd","INV-6341","6,600.00","Computing - Licences","130206737","28/02/2018","Early Intervention","HOS Early Intervention","R4535"
"Wolverhampton City Council","http://opendatacommunities.org/id/metropolitan-district-council/wolverhampton","713859","Shoosmiths LLP","9100199507","10,010.00","Services - Professional Fees","130204627","07/02/2018","Visitor Economy","Box Office Administration","R4400"
"Wolverhampton City Council","http://opendatacommunities.org/id/metropolitan-district-council/wolverhampton","713859","Shoosmiths LLP","9100205618","4,213.00","Services - Professional Fees","130204628","07/02/2018","Visitor Economy","Box Office Administration","R4400"
"Wolverhampton City Council","http://opendatacommunities.org/id/metropolitan-district-council/wolverhampton","713861","SecurePro Ltd","1903","480.00","Training Expenses","130205014","14/02/2018","Skills","IMPACT","R1650"
"Wolverhampton City Council","http://opendatacommunities.org/id/metropolitan-district-council/wolverhampton","713873","Quartzelec Ltd","7118564","1,104.70","R&M - Departmental planned (external)","130206440","23/02/2018","Maintenance Programme","Centralised R&M","R2001"
"Wolverhampton City Council","http://opendatacommunities.org/id/metropolitan-district-council/wolverhampton","713873","Quartzelec Ltd","7119776","2,606.89","R&M - Departmental planned (external)","130206579","23/02/2018","Maintenance Programme","Centralised R&M","R2001"
"Wolverhampton City Council","http://opendatacommunities.org/id/metropolitan-district-council/wolverhampton","713873","Quartzelec Ltd","7119785","1,974.99","R&M - Departmental planned (external)","130206580","23/02/2018","Maintenance Programme","Centralised R&M","R2001"
"Wolverhampton City Council","http://opendatacommunities.org/id/metropolitan-district-council/wolverhampton","713873","Quartzelec Ltd","7117244","845.48","R&M - Departmental planned (external)","130206869","23/02/2018","Maintenance Programme","Centralised R&M","R2001"
"Wolverhampton City Council","http://opendatacommunities.org/id/metropolitan-district-council/wolverhampton","713882","Frontier Plastics Ltd","N57823","1,800.04","TPP - Public Health Contracts","130205441","28/02/2018","Contracts","Alcohol and Drug","R5060"
"Wolverhampton City Council","http://opendatacommunities.org/id/metropolitan-district-council/wolverhampton","713882","Frontier Plastics Ltd","N57823","-1,800.04","TPP - Public Health Contracts","130205441","28/02/2018","Contracts","Alcohol and Drug","R5060"
"Wolverhampton City Council","http://opendatacommunities.org/id/metropolitan-district-council/wolverhampton","713882","Frontier Plastics Ltd","N57823","1,800.04","TPP - Public Health Contracts","130205441","28/02/2018","Contracts","Alcohol and Drug","R5060"
"Wolverhampton City Council","http://opendatacommunities.org/id/metropolitan-district-council/wolverhampton","713882","Frontier Plastics Ltd","N81544","-9,775.50","TPP - Public Health Contracts","130207330","28/02/2018","Contracts","Alcohol and Drug","R5060"
"Wolverhampton City Council","http://opendatacommunities.org/id/metropolitan-district-council/wolverhampton","713882","Frontier Plastics Ltd","N56502","14,082.52","TPP - Public Health Contracts","130207329","28/02/2018","Contracts","Alcohol and Drug","R5060"
"Wolverhampton City Council","http://opendatacommunities.org/id/metropolitan-district-council/wolverhampton","713901","Allens Crankshafts Ltd","Grant No. 069/17c","8,325.00","Grants paid out","190422858","14/02/2018","-","GF - Black Country Gold ERDF Project","C5000"
"Wolverhampton City Council","http://opendatacommunities.org/id/metropolitan-district-council/wolverhampton","713926","Cefndy Healthcare","800670957","334.60","Equipment - Purchase","130202187","02/02/2018","Independent Living Service","Independent Living Service","R4000"
"Wolverhampton City Council","http://opendatacommunities.org/id/metropolitan-district-council/wolverhampton","713951","Northwood Park Primary Academy","SEN Mainstream Top Ups Autumn Term 2017 - Northwood Park Academy","4,194.69","Grant Payments","190418405","07/02/2018","Schools","High Needs Top Up -Mainstream Schools/Academies","R4700"
"Wolverhampton City Council","http://opendatacommunities.org/id/metropolitan-district-council/wolverhampton","713989","Service Point(Trading division of Paragon Group uk Ltd)","92312541","210.00","Marketing \ Non-staff advertising","130206268","28/02/2018","Markets","Wolverhampton Indoor and Open Market","R4317"
"Wolverhampton City Council","http://opendatacommunities.org/id/metropolitan-district-council/wolverhampton","713989","Service Point(Trading division of Paragon Group uk Ltd)","92312540","195.00","Printing","130206267","16/02/2018","ICTS","Document Centre - General","R4300"
"Wolverhampton City Council","http://opendatacommunities.org/id/metropolitan-district-council/wolverhampton","713989","Service Point(Trading division of Paragon Group uk Ltd)","92312539","385.00","Marketing \ Non-staff advertising","130206266","16/02/2018","Markets","Wolverhampton Indoor and Open Market","R4317"
"Wolverhampton City Council","http://opendatacommunities.org/id/metropolitan-district-council/wolverhampton","714048","Lisa Cawthorn","65","388.70","Services - Professional Fees","130204499","02/02/2018","Looked After Children","Panel Expenses Fostering & Adoption","R4400"
"Wolverhampton City Council","http://opendatacommunities.org/id/metropolitan-district-council/wolverhampton","714048","Lisa Cawthorn","66","388.70","Services - Professional Fees","130206115","23/02/2018","Looked After Children","Panel Expenses Fostering & Adoption","R4400"
"Wolverhampton City Council","http://opendatacommunities.org/id/metropolitan-district-council/wolverhampton","714048","Lisa Cawthorn","66","-388.70","Services - Professional Fees","130206115","23/02/2018","Looked After Children","Panel Expenses Fostering & Adoption","R4400"
"Wolverhampton City Council","http://opendatacommunities.org/id/metropolitan-district-council/wolverhampton","714048","Lisa Cawthorn","66","388.70","Services - Professional Fees","130206115","23/02/2018","Looked After Children","Panel Expenses Fostering & Adoption","R4400"
"Wolverhampton City Council","http://opendatacommunities.org/id/metropolitan-district-council/wolverhampton","714048","Lisa Cawthorn","64","388.70","Services - Professional Fees","130204096","02/02/2018","Looked After Children","Panel Expenses Fostering & Adoption","R4400"
"Wolverhampton City Council","http://opendatacommunities.org/id/metropolitan-district-council/wolverhampton","714048","Lisa Cawthorn","64","-388.70","Services - Professional Fees","130204096","02/02/2018","Looked After Children","Panel Expenses Fostering & Adoption","R4400"
"Wolverhampton City Council","http://opendatacommunities.org/id/metropolitan-district-council/wolverhampton","714048","Lisa Cawthorn","64","388.70","Services - Professional Fees","130204096","02/02/2018","Looked After Children","Panel Expenses Fostering & Adoption","R4400"
"Wolverhampton City Council","http://opendatacommunities.org/id/metropolitan-district-council/wolverhampton","714048","Lisa Cawthorn","63","-388.70","Services - Professional Fees","130204095","02/02/2018","Looked After Children","Panel Expenses Fostering & Adoption","R4400"
"Wolverhampton City Council","http://opendatacommunities.org/id/metropolitan-district-council/wolverhampton","714048","Lisa Cawthorn","63","388.70","Services - Professional Fees","130204095","02/02/2018","Looked After Children","Panel Expenses Fostering & Adoption","R4400"
"Wolverhampton City Council","http://opendatacommunities.org/id/metropolitan-district-council/wolverhampton","714048","Lisa Cawthorn","63","388.70","Services - Professional Fees","130204095","02/02/2018","Looked After Children","Panel Expenses Fostering & Adoption","R4400"
"Wolverhampton City Council","http://opendatacommunities.org/id/metropolitan-district-council/wolverhampton","714048","Lisa Cawthorn","67","388.70","Services - Professional Fees","130207032","23/02/2018","Looked After Children","Panel Expenses Fostering & Adoption","R4400"
"Wolverhampton City Council","http://opendatacommunities.org/id/metropolitan-district-council/wolverhampton","714074","Becky Lloyd School Improvement","130HEADSTART2-","4,075.00","Services - Professional Fees","130205015","14/02/2018","Headstart","Headstart Phase 3","R4400"
"Wolverhampton City Council","http://opendatacommunities.org/id/metropolitan-district-council/wolverhampton","714108","Byron Parish","SD0003","960.00","Services - Professional Fees","130205016","09/02/2018","Standards and Vulnerable Pupils","Music Support Team","R4400"
"Wolverhampton City Council","http://opendatacommunities.org/id/metropolitan-district-council/wolverhampton","714187","Hortons� Estate Limited","66458","1,500.00","Rent","130205759","14/02/2018","Skills","Connexions Contract","R2200"
"Wolverhampton City Council","http://opendatacommunities.org/id/metropolitan-district-council/wolverhampton","714193","Leighton Best Consultancy","077","430.00","Construction and Conversion","130205442","28/02/2018","-","Adaptations for People with Disabilites","C1100"
"Wolverhampton City Council","http://opendatacommunities.org/id/metropolitan-district-council/wolverhampton","714205","Dolphin Media & Design Ltd","195L","696.07","Computing - Purchase of Hardware","130207333","28/02/2018","ICTS","Strategic ICTS (ICT Service Budget)","R4530"
"Wolverhampton City Council","http://opendatacommunities.org/id/metropolitan-district-council/wolverhampton","714205","Dolphin Media & Design Ltd","3994","731.25","Equipment - Hire","130203066","09/02/2018","Leisure Services","Bert Williams Leisure Centre","R4001"
"Wolverhampton City Council","http://opendatacommunities.org/id/metropolitan-district-council/wolverhampton","714260","Liberty Support  / SevaSupport Ltd","254320180205","1,134.00","TPP - Supported Living","190419132","07/02/2018","Learning Disabilities Care Purchasing","LD Care Purchasing (Spot Placements)","R5422"
"Wolverhampton City Council","http://opendatacommunities.org/id/metropolitan-district-council/wolverhampton","714260","Liberty Support  / SevaSupport Ltd","253420180205","507.00","TPP - Home Care","190419125","07/02/2018","Mental Health Assesment & Care Management","MH Care Purchasing (Spot Placements)","R5420"
"Wolverhampton City Council","http://opendatacommunities.org/id/metropolitan-district-council/wolverhampton","714260","Liberty Support  / SevaSupport Ltd","253620180205","936.00","TPP - Home Care","190419127","07/02/2018","Mental Health Assesment & Care Management","MH Care Purchasing (Spot Placements)","R5420"
"Wolverhampton City Council","http://opendatacommunities.org/id/metropolitan-district-council/wolverhampton","714260","Liberty Support  / SevaSupport Ltd","253020180205","936.00","TPP - Home Care","190419121","07/02/2018","Mental Health Assesment & Care Management","MH Care Purchasing (Spot Placements)","R5420"
"Wolverhampton City Council","http://opendatacommunities.org/id/metropolitan-district-council/wolverhampton","714260","Liberty Support  / SevaSupport Ltd","253320180205","832.00","TPP - Home Care","190419124","07/02/2018","Learning Disabilities Care Purchasing","LD Care Purchasing (Spot Placements)","R5420"
"Wolverhampton City Council","http://opendatacommunities.org/id/metropolitan-district-council/wolverhampton","714260","Liberty Support  / SevaSupport Ltd","254420180205","4,066.32","TPP - Supported Living","190419133","07/02/2018","Learning Disabilities Care Purchasing","LD Care Purchasing (Spot Placements)","R5422"
"Wolverhampton City Council","http://opendatacommunities.org/id/metropolitan-district-council/wolverhampton","714260","Liberty Support  / SevaSupport Ltd","254220180205","4,142.60","TPP - Supported Living","190419131","07/02/2018","Learning Disabilities Care Purchasing","LD Care Purchasing (Spot Placements)","R5422"
"Wolverhampton City Council","http://opendatacommunities.org/id/metropolitan-district-council/wolverhampton","714260","Liberty Support  / SevaSupport Ltd","253820180205","937.20","TPP - Supported Living","190419129","07/02/2018","Mental Health Assesment & Care Management","MH Care Purchasing (Spot Placements)","R5422"
"Wolverhampton City Council","http://opendatacommunities.org/id/metropolitan-district-council/wolverhampton","714260","Liberty Support  / SevaSupport Ltd","254020180205","780.00","TPP - Home Care","190419130","07/02/2018","Learning Disabilities Care Purchasing","LD Care Purchasing (Spot Placements)","R5420"
"Wolverhampton City Council","http://opendatacommunities.org/id/metropolitan-district-council/wolverhampton","714260","Liberty Support  / SevaSupport Ltd","253120180205","156.00","TPP - Home Care","190419122","07/02/2018","Learning Disabilities Care Purchasing","LD Care Purchasing (Spot Placements)","R5420"
"Wolverhampton City Council","http://opendatacommunities.org/id/metropolitan-district-council/wolverhampton","714260","Liberty Support  / SevaSupport Ltd","253220180205","468.00","TPP - Home Care","190419123","07/02/2018","Learning Disabilities Care Purchasing","LD Care Purchasing (Spot Placements)","R5420"
"Wolverhampton City Council","http://opendatacommunities.org/id/metropolitan-district-council/wolverhampton","714260","Liberty Support  / SevaSupport Ltd","253720180205","936.00","TPP - Home Care","190419128","07/02/2018","Mental Health Assesment & Care Management","MH Care Purchasing (Spot Placements)","R5420"
"Wolverhampton City Council","http://opendatacommunities.org/id/metropolitan-district-council/wolverhampton","714260","Liberty Support  / SevaSupport Ltd","253520180205","937.20","TPP - Supported Living","190419126","07/02/2018","Mental Health Assesment & Care Management","MH Care Purchasing (Spot Placements)","R5422"
"Wolverhampton City Council","http://opendatacommunities.org/id/metropolitan-district-council/wolverhampton","714276","Speller Metcalfe Malvern Limited","CIN7133","1,414,587.38","Construction and Conversion","130206742","23/02/2018","-","Future Spaces","C1100"
"Wolverhampton City Council","http://opendatacommunities.org/id/metropolitan-district-council/wolverhampton","714279","Tusker","SIN350611","584.51","Services - Professional Fees","130203969","14/02/2018","Human Resources","Salary Sacrifice Schemes","R4400"
"Wolverhampton City Council","http://opendatacommunities.org/id/metropolitan-district-council/wolverhampton","714279","Tusker","SIN348207","40.00","Services - Professional Fees","130202535","07/02/2018","Human Resources","Salary Sacrifice Schemes","R4400"
"Wolverhampton City Council","http://opendatacommunities.org/id/metropolitan-district-council/wolverhampton","714279","Tusker","SIN348207","-40.00","Services - Professional Fees","130202535","07/02/2018","Human Resources","Salary Sacrifice Schemes","R4400"
"Wolverhampton City Council","http://opendatacommunities.org/id/metropolitan-district-council/wolverhampton","714279","Tusker","SIN348207","30.00","Services - Professional Fees","130202535","07/02/2018","Human Resources","Salary Sacrifice Schemes","R4400"
"Wolverhampton City Council","http://opendatacommunities.org/id/metropolitan-district-council/wolverhampton","714279","Tusker","SIN348207","10.00","Services - Professional Fees","130202535","07/02/2018","Human Resources","Salary Sacrifice Schemes","R4400"
"Wolverhampton City Council","http://opendatacommunities.org/id/metropolitan-district-council/wolverhampton","714279","Tusker","SIN349313","75.00","Services - Professional Fees","130203230","14/02/2018","Human Resources","Salary Sacrifice Schemes","R4400"
"Wolverhampton City Council","http://opendatacommunities.org/id/metropolitan-district-council/wolverhampton","714279","Tusker","SIN349313","-75.00","Services - Professional Fees","130203230","14/02/2018","Human Resources","Salary Sacrifice Schemes","R4400"
"Wolverhampton City Council","http://opendatacommunities.org/id/metropolitan-district-council/wolverhampton","714279","Tusker","SIN349313","10.00","Services - Professional Fees","130203230","14/02/2018","Human Resources","Salary Sacrifice Schemes","R4400"
"Wolverhampton City Council","http://opendatacommunities.org/id/metropolitan-district-council/wolverhampton","714279","Tusker","SIN349313","65.00","Services - Professional Fees","130203230","14/02/2018","Human Resources","Salary Sacrifice Schemes","R4400"
"Wolverhampton City Council","http://opendatacommunities.org/id/metropolitan-district-council/wolverhampton","714279","Tusker","SIN350398","80.00","Services - Professional Fees","130203231","14/02/2018","Human Resources","Salary Sacrifice Schemes","R4400"
"Wolverhampton City Council","http://opendatacommunities.org/id/metropolitan-district-council/wolverhampton","714279","Tusker","SIN350398","-80.00","Services - Professional Fees","130203231","14/02/2018","Human Resources","Salary Sacrifice Schemes","R4400"
"Wolverhampton City Council","http://opendatacommunities.org/id/metropolitan-district-council/wolverhampton","714279","Tusker","SIN350398","20.00","Services - Professional Fees","130203231","14/02/2018","Human Resources","Salary Sacrifice Schemes","R4400"
"Wolverhampton City Council","http://opendatacommunities.org/id/metropolitan-district-council/wolverhampton","714279","Tusker","SIN350398","60.00","Services - Professional Fees","130203231","14/02/2018","Human Resources","Salary Sacrifice Schemes","R4400"
"Wolverhampton City Council","http://opendatacommunities.org/id/metropolitan-district-council/wolverhampton","714284","39 Essex Chambers","19824416/05/2017-21/12/2017","11,200.00","Services - Professional Fees","130204629","16/02/2018","Waste and Recycling Service","Waste Disposal - General","R4400"
"Wolverhampton City Council","http://opendatacommunities.org/id/metropolitan-district-council/wolverhampton","715778","Coopal Ltd","724","1,390.00","Equipment - R & M","130204253","02/02/2018","Leisure Services","Bert Williams Leisure Centre","R4003"
"Wolverhampton City Council","http://opendatacommunities.org/id/metropolitan-district-council/wolverhampton","715778","Coopal Ltd","734","68.00","Equipment - R & M","130204254","02/02/2018","Leisure Services","Bert Williams Leisure Centre","R4003"
"Wolverhampton City Council","http://opendatacommunities.org/id/metropolitan-district-council/wolverhampton","715821","EDF Energy","000003816456","346.38","Electricity","190425561","21/02/2018","City Development","Southside","R2100"
"Wolverhampton City Council","http://opendatacommunities.org/id/metropolitan-district-council/wolverhampton","715909","Family Action","23177","426.00","Direct Work With Children","130203970","07/02/2018","Specialist Support","Therapeutic Support Team","R6310"
"Wolverhampton City Council","http://opendatacommunities.org/id/metropolitan-district-council/wolverhampton","715909","Family Action","R22770","491.00","Direct Work With Children","130204501","02/02/2018","Specialist Support","Therapeutic Support Team","R6310"
"Wolverhampton City Council","http://opendatacommunities.org/id/metropolitan-district-council/wolverhampton","715909","Family Action","23178","426.00","Direct Work With Children","130203971","07/02/2018","Specialist Support","Therapeutic Support Team","R6310"
"Wolverhampton City Council","http://opendatacommunities.org/id/metropolitan-district-council/wolverhampton","715951","Kate Tilley","KT-W-01-18(W-Q-49)","75.00","Services - Professional Fees","130205018","14/02/2018","Visitor Economy","Art Galleries - Schools Art SLA Service","R4400"
"Wolverhampton City Council","http://opendatacommunities.org/id/metropolitan-district-council/wolverhampton","715951","Kate Tilley","KT-W-01A-18(W-Q-50)","100.00","Services - Professional Fees","130205019","21/02/2018","Visitor Economy","Art Galleries - Schools Art SLA Service","R4400"
"Wolverhampton City Council","http://opendatacommunities.org/id/metropolitan-district-council/wolverhampton","716001","Sigma Surveying Services Limited","00001255/MAS","17,600.00","Services - Consultants","130205020","28/02/2018","Commercial Services","Corporate Procurement Unit","R4404"
"Wolverhampton City Council","http://opendatacommunities.org/id/metropolitan-district-council/wolverhampton","716010","Kingdom Security Limited","0000484152","22,560.00","Services - Professional Fees","130205174","28/02/2018","Public Protection","Environmental Crime","R4400"
"Wolverhampton City Council","http://opendatacommunities.org/id/metropolitan-district-council/wolverhampton","716057","Stroud Practice","FOS4032","29.23","Services - Professional Fees","190419170","07/02/2018","Looked After Children","Fostering Team & Allowances","R4400"
"Wolverhampton City Council","http://opendatacommunities.org/id/metropolitan-district-council/wolverhampton","716057","Stroud Practice","FOS4033","29.23","Services - Professional Fees","190419171","07/02/2018","Looked After Children","Fostering Team & Allowances","R4400"
"Wolverhampton City Council","http://opendatacommunities.org/id/metropolitan-district-council/wolverhampton","716106","Active Assistance","12966720180220","1,232.91","TPP - Home Care","190425814","21/02/2018","Physical Disabilities Care Purchasing","PD Care Purchasing (Spot Placements)","R5420"
"Wolverhampton City Council","http://opendatacommunities.org/id/metropolitan-district-council/wolverhampton","716106","Active Assistance","12966720180220","136.99","TPP - Home Care","190425814","21/02/2018","Physical Disabilities Care Purchasing","PD Care Purchasing (Spot Placements)","R5420"
"Wolverhampton City Council","http://opendatacommunities.org/id/metropolitan-district-council/wolverhampton","716106","Active Assistance","12934420180205","1,232.91","TPP - Home Care","190419134","07/02/2018","Physical Disabilities Care Purchasing","PD Care Purchasing (Spot Placements)","R5420"
"Wolverhampton City Council","http://opendatacommunities.org/id/metropolitan-district-council/wolverhampton","716106","Active Assistance","12934420180205","136.99","TPP - Home Care","190419134","07/02/2018","Physical Disabilities Care Purchasing","PD Care Purchasing (Spot Placements)","R5420"
"Wolverhampton City Council","http://opendatacommunities.org/id/metropolitan-district-council/wolverhampton","716106","Active Assistance","12981720180226","1,232.91","TPP - Home Care","190427649","28/02/2018","Physical Disabilities Care Purchasing","PD Care Purchasing (Spot Placements)","R5420"
"Wolverhampton City Council","http://opendatacommunities.org/id/metropolitan-district-council/wolverhampton","716106","Active Assistance","12981720180226","136.99","TPP - Home Care","190427649","28/02/2018","Physical Disabilities Care Purchasing","PD Care Purchasing (Spot Placements)","R5420"
"Wolverhampton City Council","http://opendatacommunities.org/id/metropolitan-district-council/wolverhampton","716106","Active Assistance","12951520180213","1,232.91","TPP - Home Care","190422940","14/02/2018","Physical Disabilities Care Purchasing","PD Care Purchasing (Spot Placements)","R5420"
"Wolverhampton City Council","http://opendatacommunities.org/id/metropolitan-district-council/wolverhampton","716106","Active Assistance","12951520180213","136.99","TPP - Home Care","190422940","14/02/2018","Physical Disabilities Care Purchasing","PD Care Purchasing (Spot Placements)","R5420"
"Wolverhampton City Council","http://opendatacommunities.org/id/metropolitan-district-council/wolverhampton","716121","Blue Cable Ltd","BC/984/14","1,166.40","Computing - Purchase of Hardware","130203068","14/02/2018","ICTS","Strategic ICTS (ICT Service Budget)","R4530"
"Wolverhampton City Council","http://opendatacommunities.org/id/metropolitan-district-council/wolverhampton","716121","Blue Cable Ltd","BC/983/14","765.00","Computing - Purchase of Hardware","130203067","14/02/2018","ICTS","Strategic ICTS (ICT Service Budget)","R4530"
"Wolverhampton City Council","http://opendatacommunities.org/id/metropolitan-district-council/wolverhampton","716125","Autostart Midlands Limited","080426","7.25","Equipment - Purchase","190426840","23/02/2018","Fleet Services","Fleet Management","R4000"
"Wolverhampton City Council","http://opendatacommunities.org/id/metropolitan-district-council/wolverhampton","716125","Autostart Midlands Limited","080441","49.50","Equipment - Purchase","190426841","23/02/2018","Fleet Services","Fleet Management","R4000"
"Wolverhampton City Council","http://opendatacommunities.org/id/metropolitan-district-council/wolverhampton","716177","Bolinda Uk Ltd","26519","100.76","Books","130204097","21/02/2018","Strategic Organisation Development","Global Budgets","R4309"
"Wolverhampton City Council","http://opendatacommunities.org/id/metropolitan-district-council/wolverhampton","716177","Bolinda Uk Ltd","26520","439.09","Books","130204098","21/02/2018","Strategic Organisation Development","Global Budgets","R4309"
"Wolverhampton City Council","http://opendatacommunities.org/id/metropolitan-district-council/wolverhampton","716224","Homers Travel","310","1,890.00","Client Transport","130205941","14/02/2018","School Planning & Resources","Special - Transport","R3042"
"Wolverhampton City Council","http://opendatacommunities.org/id/metropolitan-district-council/wolverhampton","716224","Homers Travel","309","2,278.92","Client Transport","130205940","14/02/2018","School Planning & Resources","Special - Transport","R3042"
"Wolverhampton City Council","http://opendatacommunities.org/id/metropolitan-district-council/wolverhampton","716246","One 4 You Services Ltd","6697","1,365.00","Client Transport","130205176","21/02/2018","School Planning & Resources","Special - Transport","R3042"
"Wolverhampton City Council","http://opendatacommunities.org/id/metropolitan-district-council/wolverhampton","716246","One 4 You Services Ltd","6696","1,302.00","Client Transport","130205175","21/02/2018","School Planning & Resources","Special - Transport","R3042"
"Wolverhampton City Council","http://opendatacommunities.org/id/metropolitan-district-council/wolverhampton","716246","One 4 You Services Ltd","6698","2,808.12","Client Transport","130205177","21/02/2018","School Planning & Resources","Special - Transport","R3042"
"Wolverhampton City Council","http://opendatacommunities.org/id/metropolitan-district-council/wolverhampton","716319","Patrick J J Rollinson","PJR/56","6,380.00","R&M - Departmental planned (external)","130202189","07/02/2018","Corporate Asset Management","Centralised Planned Maintenance","R2001"
"Wolverhampton City Council","http://opendatacommunities.org/id/metropolitan-district-council/wolverhampton","716369","Armstrong Bell Ltd","0024924","187.23","Comms - Telephone Call charges","130203232","07/02/2018","Skills","Connexions Contract","R4505"
"Wolverhampton City Council","http://opendatacommunities.org/id/metropolitan-district-council/wolverhampton","716379","CN Unwin Limited","00000687931","151.50","Equipment - Purchase","130203972","21/02/2018","Fleet Services","Passenger Transport - General","R4000"
"Wolverhampton City Council","http://opendatacommunities.org/id/metropolitan-district-council/wolverhampton","716379","CN Unwin Limited","00000687931","10.00","Equipment - Purchase","130203972","21/02/2018","Fleet Services","Passenger Transport - General","R4000"
"Wolverhampton City Council","http://opendatacommunities.org/id/metropolitan-district-council/wolverhampton","716429","Sustainability West Midlands","442","500.00","Subscriptions","130205179","07/02/2018","Planning","Planning","R4701"
"Wolverhampton City Council","http://opendatacommunities.org/id/metropolitan-district-council/wolverhampton","716528","Daisy Bogg Consultancy Ltd","729","750.00","Training Expenses","130205443","28/02/2018","Human Resources","Workforce Development","R1650"
"Wolverhampton City Council","http://opendatacommunities.org/id/metropolitan-district-council/wolverhampton","716528","Daisy Bogg Consultancy Ltd","729","80.00","Training Expenses","130205443","28/02/2018","Human Resources","Workforce Development","R1650"
"Wolverhampton City Council","http://opendatacommunities.org/id/metropolitan-district-council/wolverhampton","716571","E-Recruiter","1105","4,515.00","Agency Staff","130202644","14/02/2018","Strategic Finance","Agresso System Support","R1100"
"Wolverhampton City Council","http://opendatacommunities.org/id/metropolitan-district-council/wolverhampton","716571","E-Recruiter","1122","3,225.00","Agency Staff","130203765","21/02/2018","Strategic Finance","Agresso System Support","R1100"
"Wolverhampton City Council","http://opendatacommunities.org/id/metropolitan-district-council/wolverhampton","716584","Atkins Limited","18004452","10,836.33","Services - Professional Fees","130205444","28/02/2018","Commercial Services","Corporate Procurement Unit","R4400"
"Wolverhampton City Council","http://opendatacommunities.org/id/metropolitan-district-council/wolverhampton","716584","Atkins Limited","18004455","47,840.00","Construction and Conversion","130205445","28/02/2018","-","Future Spaces","C1100"
"Wolverhampton City Council","http://opendatacommunities.org/id/metropolitan-district-council/wolverhampton","716584","Atkins Limited","18000352","15,000.00","Services - Professional Fees","130202003","02/02/2018","Strategic Organisation Development","Global Budgets","R4400"
"Wolverhampton City Council","http://opendatacommunities.org/id/metropolitan-district-council/wolverhampton","716584","Atkins Limited","18000980","2,570.32","Construction and Conversion","130203133","09/02/2018","-","Future Spaces","C1100"
"Wolverhampton City Council","http://opendatacommunities.org/id/metropolitan-district-council/wolverhampton","716584","Atkins Limited","18004457","20,000.00","Construction and Conversion","130205446","28/02/2018","-","Tap Works site","C1100"
"Wolverhampton City Council","http://opendatacommunities.org/id/metropolitan-district-council/wolverhampton","716588","Magna large Print Books","I103995","302.20","Books","130202536","07/02/2018","Strategic Organisation Development","Global Budgets","R4309"
"Wolverhampton City Council","http://opendatacommunities.org/id/metropolitan-district-council/wolverhampton","716589","Elston Hall Multi-Academy Trust","Elston Hall Academy Early Years Payment Autumn Term Final 1718","14,536.33","Grant Payments","190424278","16/02/2018","Schools","Academy Early years","R4700"
"Wolverhampton City Council","http://opendatacommunities.org/id/metropolitan-district-council/wolverhampton","716589","Elston Hall Multi-Academy Trust","SEN Mainstream Top Ups Autumn Term 2017 - Elston Hall Academy","2,425.85","Grant Payments","190418378","07/02/2018","Schools","High Needs Top Up -Mainstream Schools/Academies","R4700"
"Wolverhampton City Council","http://opendatacommunities.org/id/metropolitan-district-council/wolverhampton","716589","Elston Hall Multi-Academy Trust","Elston Hall Academy Early Years Payment Spring Term Interim 1718","30,502.33","Grant Payments","190424279","16/02/2018","Schools","Academy Early years","R4700"
"Wolverhampton City Council","http://opendatacommunities.org/id/metropolitan-district-council/wolverhampton","716594","Burke Bros Recovery","G25932","70.00","Services - Professional Fees","190423174","14/02/2018","Fleet Services","Fleet Management","R4400"
"Wolverhampton City Council","http://opendatacommunities.org/id/metropolitan-district-council/wolverhampton","716594","Burke Bros Recovery","G28632","70.00","Services - Professional Fees","190428055","28/02/2018","Fleet Services","Fleet Management","R4400"
"Wolverhampton City Council","http://opendatacommunities.org/id/metropolitan-district-council/wolverhampton","716594","Burke Bros Recovery","G27617","70.00","Services - Professional Fees","190417785","02/02/2018","Fleet Services","Fleet Management","R4400"
<!DOCTYPE HTML PUBLIC "-//W3C//DTD HTML 3.2 Final//EN">
<HTML>
<HEAD>
<TITLE>Application Firewall Alert</TITLE>
<META NAME="ROBOTS" CONTENT="NOINDEX">
</HEAD>
<BODY text="#000000" vlink="#FF3300" link="#FF3300" bgcolor="#ffffff">
<TABLE cellspacing="5" cellpadding="3" width="410">
<TR>
<TD align="left">
<FONT face="Verdana,Arial,Helvetica" size="2">
<FONT size="3"><B>Application Firewall Alert</B></FONT><BR><BR><BR>
Your request triggered an alert! If you feel that you have received this page in error, please contact the administrator of this web site.
<BR>
<HR>
</TD>
</TR>
</TABLE>
</BODY>
</HTML>